bitfinex-derivatives/quotes_BTCF0:USTF0_20260127
["timestamp","ask_amount","ask_price","bid_price","bid_amount"]
[1769543863198,0.00086282,88448.0,88439.0,0.011322]
[1769543863402,0.00935122,88456.0,88441.0,0.00991326]
[1769543863697,0.00086282,88455.0,88442.0,0.00258838]
[1769543865099,0.011,88467.0,88443.0,0.00991326]
[1769543865295,0.00086282,88466.0,88452.0,0.00991326]
[1769543865495,0.01218182,88466.0,88452.0,0.01250164]
[1769543865889,0.00086282,88466.0,88452.0,0.01250164]
[1769543867200,0.02067022,88465.0,88452.0,0.01250164]
[1769543867406,0.11665011,88462.0,88452.0,0.00258838]
[1769543867597,0.00086282,88461.0,88452.0,0.00258838]
[1769543867793,0.01021404,88461.0,88449.0,0.10192]
[1769543868103,0.00935122,88451.0,88441.0,0.10188]
[1769543868401,0.00086282,88450.0,88441.0,0.10188]
[1769543869007,0.00086282,88450.0,88437.0,0.00991326]
[1769543869304,0.00086282,88450.0,88440.0,0.10188]
[1769543871102,0.00935122,88449.0,88436.0,0.10188]
[1769543871294,0.00086282,88448.0,88436.0,0.10446838]
[1769543871498,0.00086282,88448.0,88437.0,0.00991326]
[1769543871694,0.01132,88458.0,88438.0,0.00991326]
[1769543871894,0.01132,88456.0,88440.0,0.00991326]
[1769543872109,0.01132,88454.0,88442.0,0.00991326]
[1769543872309,0.00086282,88453.0,88442.0,0.01250164]
[1769543872812,0.00086282,88453.0,88443.0,0.00991326]
[1769543873007,0.00086282,88453.0,88444.0,0.00258838]
[1769543874508,0.00086282,88453.0,88444.0,0.01198565]
[1769543874709,0.00086282,88453.0,88445.0,0.00939727]
[1769543874896,0.00086282,88453.0,88446.0,0.00258838]
[1769543875302,0.00086282,88453.0,88437.0,0.011322]
[1769543875597,0.00086282,88453.0,88440.0,0.00258838]
[1769543876000,0.00086282,88453.0,88440.0,0.01391038]
[1769543877303,0.00086282,88453.0,88441.0,0.00939727]
[1769543877613,0.00086282,88453.0,88443.0,0.00939727]
[1769543877805,0.00086282,88453.0,88443.0,0.01198565]
[1769543879407,0.12883293,88453.0,88438.0,0.00939727]
[1769543879609,0.11665011,88450.0,88439.0,0.00258838]
[1769543879914,0.00086282,88449.0,88439.0,0.00258838]
[1769543880112,0.00086282,88449.0,88439.0,0.01198565]
[1769543883112,0.00086282,88449.0,88440.0,0.00258838]
[1769543883416,0.00922843,88456.0,88441.0,0.00939727]
[1769543883615,0.00086282,88455.0,88442.0,0.01198565]
[1769543883809,0.00086282,88455.0,88443.0,0.00939727]
[1769543884006,0.00086282,88455.0,88443.0,0.01198565]
[1769543884207,0.00086282,88455.0,88444.0,0.00939727]
[1769543884512,0.10188,88460.0,88448.0,0.00939727]
[1769543884710,0.113199,88460.0,88440.0,0.00939727]
[1769543884914,0.113199,88460.0,88442.0,0.00939727]
[1769543885116,0.113199,88460.0,88443.0,0.00258838]
[1769543885420,0.02054843,88457.0,88444.0,0.00939727]
[1769543886020,0.01132,88457.0,88444.0,0.00939727]
[1769543887524,0.113199,88460.0,88444.0,0.00939727]
[1769543887721,0.113199,88460.0,88445.0,0.00939727]
[1769543888822,0.113199,88460.0,88445.0,0.01198565]
[1769543889414,0.12242743,88460.0,88445.0,0.01198565]
[1769543889819,0.01132,88458.0,88445.0,0.00939727]
[1769543891127,0.01132,88455.0,88445.0,0.00939727]
[1769543893233,0.01132,88455.0,88441.0,0.00939727]
[1769543893532,0.01132,88455.0,88442.0,0.00939727]
[1769543893732,0.01132,88455.0,88443.0,0.00939727]
[1769543895031,0.01132,88458.0,88444.0,0.02071827]
[1769543895234,0.00922843,88459.0,88446.0,0.00939727]
[1769543895929,0.02054743,88459.0,88446.0,0.00939727]
[1769543896836,0.01132,88457.0,88446.0,0.00939727]
[1769543897540,0.01132,88456.0,88446.0,0.00939727]
[1769543897934,0.00922843,88459.0,88446.0,0.00939727]
[1769543899333,0.01132,88456.0,88446.0,0.00939727]
[1769543903346,0.01132,88456.0,88444.0,0.00258838]
[1769543903640,0.01132,88456.0,88442.0,0.00989652]
[1769543903847,0.01132,88454.0,88442.0,0.00989652]
[1769543904046,0.01132,88454.0,88443.0,0.00989652]
[1769543905046,0.00941527,88456.0,88443.0,0.00989652]
[1769543905247,0.00941527,88456.0,88443.0,0.0124849]
[1769543906146,0.02073527,88456.0,88443.0,0.0124849]
[1769543906533,0.01132,88456.0,88444.0,0.00984979]
[1769543906739,0.01132,88458.0,88446.0,0.00984979]
[1769543906939,0.02073527,88458.0,88446.0,0.00984979]
[1769543907534,0.00941527,88458.0,88446.0,0.00984979]
[1769543909350,0.01132,88454.0,88446.0,0.00984979]
[1769543909847,0.01132,88453.0,88442.0,0.00984979]
[1769543910649,0.01132,88452.0,88442.0,0.00984979]
[1769543912345,0.02073527,88454.0,88442.0,0.00984979]
[1769543912547,0.01132,88454.0,88444.0,0.00984979]
[1769543912748,0.01132,88454.0,88444.0,0.01243817]
[1769543913252,0.00941527,88459.0,88444.0,0.01243817]
[1769543913755,0.01132,88457.0,88444.0,0.02375917]
[1769543914149,0.01132,88457.0,88445.0,0.00984979]
[1769543914351,0.01132,88457.0,88445.0,0.01243817]
[1769543914653,0.00941527,88457.0,88445.0,0.00984979]
[1769543914854,0.01132,88452.0,88445.0,0.00984979]
[1769543915851,0.011321,88451.0,88445.0,0.00984979]
[1769543917056,0.011319,88459.0,88441.0,0.10188]
[1769543917057,0.011321,88449.0,88441.0,0.10188]
[1769543918856,0.00941527,88460.0,88442.0,0.00984979]
[1769543919156,0.00941527,88460.0,88442.0,0.01243817]
[1769543919348,0.01132,88454.0,88442.0,0.01243817]
[1769543920357,0.011319,88463.0,88449.0,0.00984979]
[1769543920556,0.10188,88464.0,88451.0,0.00984979]
[1769543920757,0.10188,88464.0,88453.0,0.00984979]
[1769543920954,0.11129527,88464.0,88450.0,0.00984979]
[1769543921153,0.01132,88457.0,88450.0,0.00258838]
[1769543921455,0.002588,88456.0,88446.0,0.00984979]
[1769543921858,0.002588,88456.0,88446.0,0.01071299]
[1769543922456,0.01132,88455.0,88446.0,0.01071299]
[1769543922658,0.002588,88454.0,88446.0,0.01071299]
[1769543924649,0.10188,88464.0,88447.0,0.00984979]
[1769543924854,0.10188,88464.0,88449.0,0.00984979]
[1769543924855,0.002588,88461.0,88449.0,0.00984979]
[1769543925053,0.10188,88464.0,88452.0,0.00984979]
[1769543925253,0.10188,88464.0,88454.0,0.00984979]
[1769543925254,0.002588,88463.0,88454.0,0.00984979]
[1769543925455,0.002588,88463.0,88455.0,0.01071299]
[1769543927761,0.10188,88464.0,88456.0,0.01132]
[1769543928065,0.10188,88471.0,88457.0,0.01071299]
[1769543928364,0.002588,88470.0,88457.0,0.01071299]
[1769543928864,0.002588,88470.0,88458.0,0.00984979]
[1769543929058,0.002588,88470.0,88459.0,0.01071299]
[1769543930051,0.10188,88471.0,88459.0,0.01071299]
[1769543930256,0.011,88507.0,88469.0,0.00984979]
[1769543930257,0.00941527,88489.0,88469.0,0.00984979]
[1769543930557,0.03987635,88487.0,88474.0,0.00984979]
[1769543930865,0.03987635,88487.0,88478.0,0.00984979]
[1769543931059,0.03987635,88487.0,88480.0,0.00984979]
[1769543931565,0.04929162,88487.0,88476.0,0.00984979]
[1769543931757,0.04929162,88487.0,88476.0,0.01071299]
[1769543933163,0.011316,88484.0,88476.0,0.0008632]
[1769543933766,0.06060762,88487.0,88476.0,0.0008632]
[1769543934369,0.04929162,88487.0,88476.0,0.0008632]
[1769543934859,0.02300327,88487.0,88476.0,0.0008632]
[1769543935460,0.03431927,88487.0,88476.0,0.0008632]
[1769543936470,0.00976082,88486.0,88474.0,0.00984979]
[1769543936769,0.00976082,88479.0,88469.0,0.10184]
[1769543936968,0.0123492,88478.0,88469.0,0.10184]
[1769543937963,0.00258838,88478.0,88469.0,0.10184]
[1769543938767,0.00976082,88481.0,88469.0,0.12218342]
[1769543938967,0.0123492,88481.0,88469.0,0.12218342]
[1769543939371,0.0123492,88481.0,88471.0,0.011318]
[1769543939570,0.00258838,88481.0,88472.0,0.00902542]
[1769543940374,0.011317,88482.0,88472.0,0.00902542]
[1769543942165,0.01390538,88482.0,88472.0,0.00902542]
[1769543944275,0.00258838,88482.0,88472.0,0.00902542]
[1769543945977,0.011316,88485.0,88467.0,0.27093323]
[1769543945978,0.03728203,88487.0,88473.0,0.00902542]
[1769543946281,0.03728203,88487.0,88467.0,0.27093323]
[1769543946282,0.03728203,88487.0,88477.0,0.00902542]
[1769543949385,0.01978606,88487.0,88480.0,0.00902542]
[1769543949568,0.10188,88491.0,88480.0,0.00902542]
[1769543949768,0.011315,88497.0,88480.0,0.00902542]
[1769543949974,0.011315,88495.0,88480.0,0.00902542]
[1769543950174,0.00258838,88494.0,88480.0,0.00902542]
[1769543951484,0.011315,88493.0,88480.0,0.00902542]
[1769543951690,0.00258838,88492.0,88480.0,0.00902542]
[1769543952784,0.011315,88491.0,88480.0,0.00902542]
[1769543952984,0.00980881,88489.0,88475.0,0.16909323]
[1769543953187,0.00980881,88477.0,88466.0,0.22569073]
[1769543953385,0.00980881,88473.0,88464.0,0.10184]
[1769543953688,0.00258838,88472.0,88460.0,0.00057357]
[1769543953893,0.01132,88456.0,88445.0,0.09045158]
[1769543954091,0.00258838,88455.0,88445.0,0.09045158]
[1769543954594,0.00258838,88455.0,88444.0,0.011321]
[1769543956388,0.00258838,88455.0,88442.0,0.10184]
[1769543956587,0.01000525,88464.0,88442.0,0.10184]
[1769543956891,0.00258838,88463.0,88442.0,0.10184]
[1769543957494,0.00258838,88463.0,88450.0,0.011321]
[1769543957692,0.00258838,88463.0,88442.0,0.10184]
[1769543957897,0.00258838,88463.0,88449.0,0.011321]
[1769543958501,0.00258838,88463.0,88451.0,0.01132]
[1769543959302,0.00258838,88463.0,88450.0,0.11647592]
[1769543959999,0.00258838,88463.0,88442.0,0.10184]
[1769543960407,0.00258838,88463.0,88453.0,0.01132]
[1769543960611,0.00258838,88463.0,88454.0,0.0001135]
[1769543962401,0.00996216,88484.0,88456.0,0.0001135]
[1769543962601,0.00258838,88475.0,88461.0,9.453e-05]
[1769543962908,0.01255686,88475.0,88461.0,9.453e-05]
[1769543963206,0.00996848,88474.0,88461.0,9.453e-05]
[1769543963410,0.01255686,88473.0,88461.0,9.453e-05]
[1769543965401,0.01255686,88473.0,88459.0,0.011319]
[1769543965801,0.01255686,88473.0,88457.0,0.00018808]
[1769543966004,0.01255686,88473.0,88460.0,0.011319]
[1769543966200,0.01255686,88473.0,88460.0,0.01150708]
[1769543966512,0.00258838,88473.0,88462.0,0.01150708]
[1769543966709,0.00258838,88473.0,88463.0,0.00021699]
[1769543967405,0.00258838,88473.0,88455.0,0.10184]
[1769543967406,0.01251604,88473.0,88459.0,0.00021699]
[1769543967607,0.00992766,88472.0,88459.0,0.00021699]
[1769543967807,0.02124566,88470.0,88456.0,0.00021699]
[1769543968009,0.01251604,88469.0,88456.0,0.01153699]
[1769543968309,0.01251604,88469.0,88457.0,0.00021699]
[1769543971211,0.01003993,88468.0,88455.0,0.11316]
[1769543971512,0.00258838,88467.0,88455.0,0.11316]
[1769543972716,0.00258838,88467.0,88455.0,0.11328587]
[1769543973315,0.00258838,88467.0,88456.0,0.00012587]
[1769543975909,0.00258838,88467.0,88455.0,0.11316]
[1769543975910,0.00995434,88466.0,88455.0,0.10184]
[1769543976110,0.00258838,88465.0,88455.0,0.10184]
[1769543976511,0.0096047,88461.0,88446.0,0.011321]
[1769543976711,0.0096047,88459.0,88446.0,0.011321]
[1769543976919,0.0096047,88457.0,88443.0,0.011321]
[1769543977109,0.0096047,88455.0,88441.0,0.10184]
[1769543977428,0.0096047,88449.0,88435.0,0.011322]
[1769543977622,0.00258838,88448.0,88433.0,0.441563]
[1769543977812,0.00258838,88448.0,88435.0,0.011323]
[1769543978710,0.00258838,88448.0,88437.0,0.011322]
[1769543979516,0.00258838,88448.0,88434.0,0.00997519]
[1769543979710,0.00258838,88448.0,88439.0,0.011322]
[1769543980413,7.442e-05,88450.0,88439.0,0.011322]
[1769543980914,7.442e-05,88450.0,88434.0,0.00997519]
[1769543981114,0.0026628,88450.0,88434.0,0.00997519]
[1769543982222,0.0026628,88450.0,88439.0,0.011322]
[1769543984020,0.0026628,88450.0,88438.0,0.01001522]
[1769543984931,0.0026628,88450.0,88438.0,0.02133722]
[1769543986616,0.00258838,88450.0,88438.0,0.02146965]
[1769543988719,0.00258838,88450.0,88439.0,0.011322]
[1769543989227,0.00258838,88450.0,88440.0,0.01016144]
[1769543991928,0.00258838,88450.0,88441.0,0.011322]
[1769543992129,0.10184,88456.0,88443.0,0.0101823]
[1769543992432,0.00258838,88455.0,88444.0,0.0101823]
[1769543995428,0.011319,88467.0,88453.0,0.01008066]
[1769543995619,0.00258838,88466.0,88453.0,0.01008066]
[1769543995825,0.00258838,88466.0,88454.0,0.01008066]
[1769543997130,0.10188,88469.0,88456.0,0.01008192]
[1769543997325,0.10446838,88469.0,88458.0,0.01008192]
[1769543999825,0.10446838,88469.0,88454.0,0.01009191]
[1769544000127,0.011319,88466.0,88454.0,0.01009191]
[1769544000428,0.11647592,88464.0,88444.0,0.10188]
[1769544000628,0.11647592,88460.0,88444.0,0.11200269]
[1769544000824,0.00258838,88459.0,88444.0,0.11200269]
[1769544001016,0.01132,88457.0,88439.0,0.01012269]
[1769544001217,0.00258838,88456.0,88440.0,0.02144469]
[1769544001416,0.00258838,88456.0,88441.0,0.1130563]
[1769544001625,0.011322,88443.0,88430.0,0.22475436]
[1769544001829,0.01132,88459.0,88422.0,0.011324]
[1769544001830,0.11647592,88440.0,88422.0,0.011324]
[1769544002131,0.29812,88443.0,88435.0,0.01012269]
[1769544002325,0.10188,88442.0,88428.0,0.01012269]
[1769544002633,0.011323,88435.0,88415.0,0.011325]
[1769544002825,0.11647592,88430.0,88414.0,0.011325]
[1769544003025,0.10188,88429.0,88415.0,0.01039876]
[1769544003231,9.843e-05,88434.0,88421.0,0.01039876]
[1769544003425,0.011319,88461.0,88410.0,0.11647592]
[1769544003426,0.011321,88447.0,88427.0,0.01039876]
[1769544003626,0.00258838,88442.0,88427.0,0.01039876]
[1769544003826,0.11647592,88440.0,88428.0,0.00669148]
[1769544004131,0.00258838,88439.0,88423.0,0.01039876]
[1769544004629,0.00258838,88439.0,88416.0,0.10188]
[1769544004630,4.349e-05,88438.0,88426.0,0.01046033]
[1769544004929,0.01132,88453.0,88432.0,0.011323]
[1769544005133,0.01132,88451.0,88433.0,0.01044583]
[1769544005329,0.11647592,88460.0,88434.0,0.01044583]
[1769544005530,0.40004,88459.0,88442.0,0.011322]
[1769544005730,0.10188,88458.0,88451.0,0.01044583]
[1769544005930,0.011318,88469.0,88451.0,0.01044583]
[1769544006135,0.011318,88467.0,88452.0,0.01044583]
[1769544006336,0.011319,88465.0,88452.0,0.01044583]
[1769544006629,0.011319,88463.0,88452.0,0.01044583]
[1769544006834,0.00258838,88462.0,88452.0,0.01044583]
[1769544007232,0.11647592,88470.0,88453.0,0.00669148]
[1769544007448,0.00258838,88469.0,88454.0,0.010332]
[1769544007736,0.011318,88468.0,88454.0,0.010332]
[1769544007936,0.00258838,88467.0,88454.0,0.010332]
[1769544008138,0.011319,88466.0,88454.0,0.010332]
[1769544008328,0.011319,88464.0,88454.0,0.010332]
[1769544008529,0.00933597,88462.0,88440.0,0.011322]
[1769544008827,0.01199739,88461.0,88441.0,0.10188]
[1769544009031,0.00940901,88460.0,88441.0,0.10857148]
[1769544009232,0.10188,88472.0,88441.0,0.10857148]
[1769544009233,0.02072901,88458.0,88441.0,0.00669148]
[1769544009440,0.00940901,88455.0,88441.0,0.00669148]
[1769544009640,0.01199739,88454.0,88436.0,0.113202]
[1769544009840,0.01199739,88454.0,88437.0,0.00669148]
[1769544010141,0.011321,88450.0,88437.0,0.00669148]
[1769544010338,0.00940901,88448.0,88437.0,0.00669148]
[1769544010536,0.00258838,88447.0,88437.0,0.00669148]
[1769544011639,0.00258838,88447.0,88430.0,0.29816]
[1769544011640,0.0209725,88443.0,88427.0,0.11130556]
[1769544011845,0.0096505,88440.0,88424.0,0.10188]
[1769544012035,0.01223888,88439.0,88425.0,0.011324]
[1769544012336,0.10188,88452.0,88435.0,0.00942556]
[1769544012634,0.10446838,88452.0,88435.0,0.00942556]
[1769544012840,0.11578838,88452.0,88437.0,0.00942556]
[1769544013541,0.011321,88450.0,88437.0,0.00942556]
[1769544013739,0.10188,88452.0,88437.0,0.00942556]
[1769544013941,0.00258838,88450.0,88437.0,0.00942556]
[1769544014543,0.01390938,88450.0,88437.0,0.00942556]
[1769544015940,0.011321,88447.0,88437.0,0.00942556]
[1769544016133,0.01390938,88447.0,88437.0,0.00942556]
[1769544016937,0.0086971,88458.0,88437.0,0.00942556]
[1769544017142,0.00258838,88453.0,88437.0,0.00942556]
[1769544017339,0.011321,88449.0,88437.0,0.00942556]
[1769544017543,0.10188,88457.0,88437.0,0.00942556]
[1769544017544,0.01390938,88448.0,88437.0,0.00942556]
[1769544018044,0.0086971,88454.0,88437.0,0.00942556]
[1769544018242,0.10188,88474.0,88443.0,0.00942556]
[1769544018436,0.12656517,88473.0,88453.0,0.00942556]
[1769544018636,0.00086282,88473.0,88455.0,0.00942556]
[1769544018941,0.00086282,88473.0,88457.0,0.00942556]
[1769544019132,0.00086282,88473.0,88459.0,0.00942556]
[1769544019444,0.00966177,88464.0,88441.0,0.00942556]
[1769544019632,0.00966177,88462.0,88447.0,0.00258838]
[1769544019832,0.00086282,88461.0,88447.0,0.00258838]
[1769544020037,0.10274282,88461.0,88447.0,0.00258838]
[1769544021230,0.01132,88458.0,88445.0,0.00942556]
[1769544021544,0.01052459,88457.0,88433.0,0.00942556]
[1769544021739,0.00966177,88456.0,88440.0,0.011322]
[1769544022044,0.00086282,88456.0,88442.0,0.00942556]
[1769544022244,0.00086282,88456.0,88443.0,0.00258838]
[1769544022538,0.01218282,88456.0,88443.0,0.00258838]
[1769544022747,0.00966177,88455.0,88443.0,0.00258838]
[1769544022937,0.00086282,88454.0,88443.0,0.00258838]
[1769544024341,0.00086282,88454.0,88439.0,0.00908331]
[1769544024543,0.00086282,88454.0,88440.0,0.00258838]
[1769544026243,0.00086282,88454.0,88441.0,0.02064539]
[1769544026444,0.011319,88459.0,88443.0,0.00932339]
[1769544026647,0.0091985,88462.0,88445.0,0.00932339]
[1769544026849,0.40004,88461.0,88447.0,0.00932339]
[1769544027056,0.01218182,88461.0,88448.0,0.01191177]
[1769544027247,0.10188,88460.0,88448.0,0.01191177]
[1769544027441,0.10274282,88460.0,88448.0,0.01191177]
[1769544027641,0.10188,88460.0,88449.0,0.00932339]
[1769544027851,0.09188,88460.0,88451.0,0.00932339]
[1769544028046,0.09188,88460.0,88452.0,0.00258838]
[1769544028553,0.011319,88459.0,88441.0,0.00932339]
[1769544028753,0.011319,88459.0,88443.0,0.01191177]
[1769544028952,0.011319,88459.0,88444.0,0.00932339]
[1769544029155,0.011319,88459.0,88445.0,0.00258838]
[1769544029453,0.01132,88457.0,88445.0,0.01191177]
[1769544030871,0.103199,88460.0,88445.0,0.01191177]
[1769544031374,0.1123975,88460.0,88445.0,0.01191177]
[1769544032969,0.0091985,88450.0,88436.0,0.011322]
[1769544033158,0.0091985,88450.0,88433.0,0.00932339]
[1769544033159,0.0091985,88450.0,88438.0,0.011322]
[1769544033355,0.0091985,88450.0,88439.0,0.00258838]
[1769544033978,0.0091985,88449.0,88433.0,0.00932339]
[1769544034266,0.0091985,88449.0,88434.0,0.011323]
[1769544034669,0.0091985,88449.0,88434.0,0.01391138]
[1769544035870,0.0091985,88449.0,88434.0,0.00258838]
[1769544036357,0.0091985,88449.0,88435.0,0.011322]
[1769544036558,0.0091985,88449.0,88436.0,0.00258838]
[1769544036767,0.0091985,88449.0,88437.0,0.011322]
[1769544036968,0.1110785,88454.0,88438.0,0.00258838]
[1769544037369,0.0205195,88451.0,88438.0,0.00258838]
[1769544039969,0.1132,88454.0,88439.0,0.00932339]
[1769544040167,0.06329078,88477.0,88441.0,0.00932339]
[1769544040359,0.0091985,88469.0,88443.0,0.00932339]
[1769544040671,0.0091985,88466.0,88445.0,0.00932339]
[1769544040870,0.0091985,88466.0,88446.0,0.00258838]
[1769544041265,0.0205175,88462.0,88446.0,0.00258838]
[1769544041576,0.10188,88461.0,88447.0,0.00932339]
[1769544041778,0.10188,88461.0,88448.0,0.00258838]
[1769544041965,0.10188,88461.0,88449.0,0.00932339]
[1769544042166,0.10188,88461.0,88450.0,0.01191177]
[1769544044274,0.113199,88461.0,88450.0,0.00258838]
[1769544045875,0.10188,88461.0,88450.0,0.00258838]
[1769544046074,0.011319,88460.0,88450.0,0.00258838]
[1769544046375,0.01132,88458.0,88450.0,0.00258838]
[1769544046776,0.1110785,88461.0,88450.0,0.00258838]
[1769544047178,0.011319,88460.0,88450.0,0.00258838]
[1769544047771,0.0205175,88460.0,88450.0,0.00258838]
[1769544048077,0.0205175,88460.0,88445.0,0.00932339]
[1769544048383,0.0091985,88459.0,88446.0,0.00258838]
[1769544048679,0.0091985,88455.0,88446.0,0.00258838]
[1769544048869,0.01132,88453.0,88446.0,0.00258838]
[1769544049569,0.0091985,88455.0,88446.0,0.00258838]
[1769544049973,0.01132,88452.0,88440.0,0.00932339]
[1769544050170,0.01132,88452.0,88441.0,0.00258838]
[1769544051277,0.01132,88455.0,88441.0,0.01191177]
[1769544052775,0.01132,88453.0,88441.0,0.01191177]
[1769544053589,0.0091985,88450.0,88438.0,0.10188]
[1769544053778,0.0091985,88450.0,88438.0,0.10446838]
[1769544054081,0.01132,88454.0,88438.0,0.10446838]
[1769544054287,0.10188,88461.0,88441.0,0.011322]
[1769544054288,0.01132,88456.0,88441.0,0.011322]
[1769544054582,0.01132,88456.0,88442.0,0.00258838]
[1769544055179,0.10188,88461.0,88442.0,0.00258838]
[1769544055485,0.011321,88448.0,88442.0,0.00258838]
[1769544055884,0.011321,88445.0,88438.0,0.10188]
[1769544056080,0.02080639,88445.0,88438.0,0.10188]
[1769544056280,0.00948539,88444.0,88438.0,0.10188]
[1769544056882,0.00948539,88444.0,88438.0,0.09188]
[1769544057782,0.00948539,88444.0,88432.0,0.011323]
[1769544058082,0.00233717,88449.0,88433.0,0.0099856]
[1769544058282,0.10188,88450.0,88437.0,0.0099856]
[1769544058482,0.10188,88450.0,88436.0,0.011322]
[1769544058483,0.10188,88450.0,88439.0,0.0099856]
[1769544058684,0.10188,88450.0,88440.0,0.00258838]
[1769544062186,0.011316,88484.0,88447.0,0.00999999]
[1769544062385,0.011316,88484.0,88449.0,0.00999999]
[1769544062386,0.011317,88478.0,88449.0,0.00999999]
[1769544062690,0.11469055,88477.0,88451.0,0.00999999]
[1769544062990,0.011319,88465.0,88452.0,0.00258838]
[1769544063185,0.10188,88464.0,88452.0,0.00258838]
[1769544064391,6.572e-05,88463.0,88452.0,0.00258838]
[1769544066888,0.10188,88464.0,88453.0,0.00999491]
[1769544067093,0.10188,88464.0,88454.0,0.00258838]
[1769544067394,0.10188,88474.0,88460.0,0.00999491]
[1769544067584,0.10188,88474.0,88461.0,0.01258329]
[1769544067889,0.011316,88486.0,88461.0,0.01258329]
[1769544067890,0.011316,88484.0,88467.0,0.00999491]
[1769544068091,0.10188,88481.0,88469.0,0.00999491]
[1769544068286,0.10188,88481.0,88470.0,0.00258838]
[1769544068791,0.10188,88481.0,88461.0,0.011319]
[1769544069095,0.11649915,88480.0,88464.0,0.00258838]
[1769544069793,0.011317,88477.0,88464.0,0.00258838]
[1769544070597,0.00174072,88476.0,88464.0,0.00258838]
[1769544071182,0.00174072,88476.0,88464.0,0.01390738]
[1769544073583,0.10188,88481.0,88467.0,0.0099856]
[1769544073787,0.013026,88487.0,88479.0,0.0099856]
[1769544073788,0.011,88487.0,88479.0,0.0099856]
[1769544073983,0.011,88487.0,88478.0,0.011317]
[1769544073984,0.10188,88493.0,88481.0,0.0099856]
[1769544074289,0.10188,88493.0,88482.0,0.00258838]
[1769544074590,0.11529447,88493.0,88482.0,0.00258838]
[1769544075692,0.00209947,88492.0,88482.0,0.00258838]
[1769544081197,0.00209947,88492.0,88482.0,0.01390438]
[1769544081807,0.10188,88493.0,88482.0,0.01390438]
[1769544082011,0.10184,88494.0,88483.0,0.0099856]
[1769544082307,0.10184,88494.0,88484.0,0.00258838]
[1769544083109,0.011314,88499.0,88485.0,0.00959669]
[1769544083311,0.10184,88498.0,88487.0,0.00959669]
[1769544083510,0.00229591,88501.0,88488.0,0.00258838]
[1769544083712,0.10184,88500.0,88488.0,0.00258838]
[1769544083899,0.011312,88515.0,88500.0,0.00981547]
[1769544084210,0.113153,88513.0,88501.0,0.00258838]
[1769544084514,0.10184,88513.0,88501.0,0.00258838]
[1769544085212,0.011313,88512.0,88501.0,0.00258838]
[1769544085913,0.00046898,88511.0,88501.0,0.00258838]
[1769544087812,0.01178198,88511.0,88501.0,0.00258838]
[1769544091012,0.00041292,88510.0,88501.0,0.00258838]
[1769544092216,0.10184,88513.0,88502.0,0.00997233]
[1769544092517,0.10184,88513.0,88503.0,0.01256071]
[1769544094919,0.00033955,88512.0,88503.0,0.00258838]
[1769544095113,0.01165255,88512.0,88503.0,0.00258838]
[1769544096518,0.00033955,88511.0,88503.0,0.00258838]
[1769544098526,0.01165255,88511.0,88503.0,0.00258838]
[1769544098815,0.0001191,88500.0,88486.0,0.00997233]
[1769544099118,0.011315,88498.0,88489.0,0.10184]
[1769544099320,0.0001191,88499.0,88490.0,0.00258838]
[1769544099521,0.011314,88504.0,88490.0,0.00258838]
[1769544099725,0.0001191,88503.0,88490.0,0.00258838]
[1769544100021,0.0001191,88502.0,88490.0,0.00258838]
[1769544100218,0.011314,88499.0,88490.0,0.00258838]
[1769544100608,0.01143588,88499.0,88490.0,0.00258838]
[1769544100808,0.01143588,88499.0,88489.0,0.10184]
[1769544101411,0.01143588,88499.0,88489.0,0.10442838]
[1769544101606,0.011314,88502.0,88490.0,0.00997233]
[1769544101810,0.011314,88502.0,88491.0,0.00258838]
[1769544102006,0.01143588,88502.0,88491.0,0.00258838]
[1769544104517,0.01143588,88502.0,88480.0,0.41449915]
[1769544104518,0.011317,88481.0,88467.0,0.113158]
[1769544104727,0.011317,88481.0,88452.0,0.02467649]
[1769544104728,0.11649915,88480.0,88456.0,0.22492574]
[1769544104914,0.11649915,88480.0,88450.0,8.223e-05]
[1769544104915,0.011318,88468.0,88450.0,8.223e-05]
[1769544105116,0.411158,88468.0,88453.0,0.00258838]
[1769544105417,0.39984,88468.0,88453.0,0.00258838]
[1769544105622,0.39984,88468.0,88454.0,0.01011726]
[1769544105815,0.39984,88468.0,88456.0,0.01011726]
[1769544106016,0.39984,88468.0,88458.0,0.01011726]
[1769544106219,0.39984,88468.0,88460.0,0.01011726]
[1769544106518,0.11649915,88480.0,88461.0,0.00258838]
[1769544106717,0.011318,88474.0,88461.0,0.00258838]
[1769544106917,0.011318,88472.0,88461.0,0.00258838]
[1769544107215,0.10184,88473.0,88461.0,0.00258838]
[1769544107813,0.011317,88475.0,88461.0,0.00258838]
[1769544108015,0.10184,88479.0,88466.0,0.01002732]
[1769544108216,0.10184,88479.0,88468.0,0.01002732]
[1769544108417,0.113157,88479.0,88469.0,0.00258838]
[1769544108618,0.113157,88479.0,88463.0,0.01002732]
[1769544108922,0.113157,88479.0,88464.0,0.00258838]
[1769544109124,0.10184,88479.0,88464.0,0.01387099]
[1769544110018,0.011317,88482.0,88464.0,0.01387099]
[1769544110216,0.411197,88482.0,88464.0,0.01387099]
[1769544111821,0.39988,88482.0,88471.0,0.01133367]
[1769544112022,0.011316,88487.0,88473.0,0.01133367]
[1769544112223,0.29804,88486.0,88475.0,0.01133367]
[1769544112422,0.011316,88489.0,88476.0,0.00258838]
[1769544112832,0.011315,88492.0,88476.0,0.00258838]
[1769544113124,0.39988,88491.0,88476.0,0.00258838]
[1769544113517,0.39988,88491.0,88476.0,0.01394017]
[1769544116433,0.11649915,88520.0,88490.0,0.01123978]
[1769544116734,0.011313,88510.0,88491.0,0.01382816]
[1769544117022,0.29804,88509.0,88491.0,0.01382816]
[1769544117228,0.10184,88508.0,88491.0,0.01382816]
[1769544117424,0.011313,88507.0,88491.0,0.01382816]
[1769544117629,0.011314,88505.0,88491.0,0.00258838]
[1769544118031,0.113153,88508.0,88491.0,0.00258838]
[1769544118832,0.10184,88508.0,88491.0,0.00258838]
[1769544119030,0.011314,88505.0,88491.0,0.00258838]
[1769544120635,0.10184,88508.0,88491.0,0.0139267]
[1769544120829,0.10184,88508.0,88498.0,0.011314]
[1769544121023,0.10024453,88508.0,88499.0,0.00258838]
[1769544121227,0.39988,88515.0,88500.0,0.02265232]
[1769544121426,0.10184,88515.0,88501.0,0.0139267]
[1769544121736,0.11649915,88530.0,88502.0,0.01133832]
[1769544121934,0.39988,88526.0,88510.0,0.11649915]
[1769544122130,0.11649915,88550.0,88516.0,0.11649915]
[1769544122327,0.011309,88541.0,88521.0,0.011312]
[1769544122524,0.011309,88541.0,88511.0,0.29804]
[1769544122525,0.011309,88542.0,88502.0,4.7e-07]
[1769544122726,0.011314,88503.0,88482.0,0.01140985]
[1769544123034,0.011313,88506.0,88484.0,0.01140985]
[1769544123234,0.011313,88506.0,88481.0,0.10184]